bitfinex/quotes_ETHUSD_20241109
["timestamp","ask_amount","ask_price","bid_price","bid_amount"]
[1731140667793,2.08688164,3028.4,3028.3,5.91887914]
[1731140678825,2.08688164,3028.4,3028.3,1.64793385]
[1731140679054,2.08688164,3028.4,3028.3,5.91887914]
[1731140680511,2.08688164,3028.4,3028.3,2.91887914]
[1731140681135,2.08688164,3028.4,3028.3,5.91887914]
[1731140683567,2.08688164,3028.4,3028.3,2.91887914]
[1731140684118,2.08688164,3028.4,3028.3,5.91887914]
[1731140686659,2.08688164,3028.4,3028.3,1.64793385]
[1731140686822,2.08688164,3028.4,3028.3,5.91887914]
[1731140695642,2.08688164,3028.4,3028.3,0.86523385]
[1731140695842,2.08688164,3028.4,3028.3,1.92738078]
[1731140698518,2.08688164,3028.4,3028.3,4.92738078]
[1731140701731,2.89558164,3028.4,3027.9,1.27094529]
[1731140702151,0.8087,3028.3,3027.7,1.27094529]
[1731140702759,0.8087,3028.3,3027.3,0.094412]
[1731140703051,0.8087,3028.3,3027.7,1.27094529]
[1731140703205,0.8087,3028.1,3027.5,1.27094529]
[1731140703405,0.8087,3028.1,3027.9,0.64353724]
[1731140703648,0.8087,3028.1,3027.6,3.0]
[1731140703853,0.8087,3028.1,3027.5,1.27094529]
[1731140705851,0.8087,3028.1,3027.9,1.27094529]
[1731140707028,0.8087,3028.1,3027.8,0.67044193]
[1731140710150,0.8087,3028.1,3027.9,1.27094529]
[1731140712162,0.8087,3028.1,3027.8,0.67044193]
[1731140713906,0.8087,3028.1,3027.8,1.94138722]
[1731140720301,0.8087,3028.1,3027.8,2.43552594]
[1731140721076,0.8087,3028.1,3027.8,5.43552594]
[1731140721283,0.8087,3028.1,3027.8,1.16458065]
[1731140721483,0.8087,3028.1,3027.9,1.27094529]
[1731140721679,0.7682,3028.3,3027.9,1.27094529]
[1731140721994,0.7682,3028.3,3028.0,0.06604207]
[1731140724609,0.7682,3028.3,3027.9,1.27094529]
[1731140724804,0.7682,3028.3,3027.8,0.67044193]
[1731140725117,0.7682,3028.3,3027.8,1.94138722]
[1731140726111,0.7682,3028.3,3027.8,2.43552594]
[1731140730511,0.7682,3028.3,3028.0,1.27094529]
[1731140731371,0.7682,3028.3,3027.8,2.43552594]
[1731140731575,0.7682,3028.3,3027.8,1.94138722]
[1731140732080,0.7682,3028.3,3028.0,1.27094529]
[1731140740363,2.08688164,3028.4,3028.3,0.7672]
[1731140741219,2.08688164,3028.4,3028.3,1.27094529]
[1731140741615,2.08688164,3028.4,3028.3,2.06854529]
[1731140741861,2.08688164,3028.4,3028.3,2.27539982]
[1731140742424,2.08688164,3028.4,3028.3,5.92561959]
[1731140746468,2.08688164,3028.4,3028.3,6.06303243]
[1731140751271,2.08688164,3028.4,3028.3,3.06303243]
[1731140751486,2.08688164,3028.4,3028.3,6.06303243]
[1731140753408,2.08688164,3028.4,3028.3,2.26543243]
[1731140753764,2.08688164,3028.4,3028.3,5.12801959]
[1731140754710,2.08688164,3028.4,3028.3,2.12801959]
[1731140757191,2.08688164,3028.4,3028.3,0.8570743]
[1731140757497,2.08688164,3028.4,3028.3,1.92116506]
[1731140758868,2.88518164,3028.4,3028.3,1.92116506]
[1731140759910,2.88518164,3028.4,3028.3,0.65021977]
[1731140762417,2.08688164,3028.4,3028.3,0.65021977]
[1731140762564,2.08688164,3028.4,3028.3,1.92116506]
[1731140763108,2.08688164,3028.4,3028.3,2.49247157]
[1731140765116,2.08688164,3028.4,3028.3,3.76341686]
[1731140765467,2.08688164,3028.4,3028.3,2.49247157]
[1731140767310,2.08688164,3028.4,3028.3,3.28437157]
[1731140767481,2.08688164,3028.4,3028.3,6.28437157]
[1731140767790,0.1947707,3028.4,3028.3,7.62135106]
[1731140768102,0.1947707,3028.4,3028.3,7.55531686]
[1731140769215,0.1947707,3028.4,3028.3,5.01342628]
[1731140769517,0.1947707,3028.4,3028.3,6.28437157]
[1731140770422,0.1947707,3028.4,3028.3,5.49247157]
[1731140773518,0.1947707,3028.4,3028.3,6.77341686]
[1731140773810,0.1947707,3028.4,3028.3,5.50247157]
[1731140774213,0.1947707,3028.4,3028.3,6.77341686]
[1731140774898,0.1947707,3028.4,3028.3,7.63134352]
[1731140775417,0.1947707,3028.4,3028.3,2.02342628]
[1731140775613,0.1947707,3028.4,3028.3,6.99401035]
[1731140776590,0.1947707,3028.4,3028.3,7.06003834]
[1731140777610,1.0,3028.7,3028.4,3.0]
[1731140777777,1.0,3028.7,3028.6,1.27094529]
[1731140777978,1.0,3028.7,3028.6,4.27094529]
[1731140778183,1.0,3028.7,3028.6,5.13173703]
[1731140778411,1.0,3028.7,3028.6,0.86079174]
[1731140778612,1.0,3028.7,3028.6,1.27094529]
[1731140779516,1.0,3028.7,3028.6,4.27094529]
[1731140779972,0.87782698,3029.6,3028.8,0.7919]
[1731140780175,0.87782698,3029.6,3029.5,1.27094529]
[1731140780372,8.73094529,3030.7,3029.5,1.27094529]
[1731140780777,1.27809361,3030.0,3029.3,1.27094529]
[1731140780975,1.27809361,3030.0,3028.9,1.27094529]
[1731140781385,0.55,3029.9,3028.9,1.27094529]
[1731140781586,0.55,3029.9,3029.1,1.27094529]
[1731140782350,0.55,3030.1,3029.1,1.27094529]
[1731140782627,0.91889602,3030.1,3029.1,1.27094529]
[1731140782922,0.91889602,3030.1,3029.1,1.92192458]
[1731140783108,0.55,3030.1,3029.1,1.92192458]
[1731140783311,0.802,3030.1,3029.1,1.92192458]
[1731140783509,0.55,3030.0,3029.3,1.27094529]
[1731140783713,0.802,3029.9,3029.1,3.65097929]
[1731140783901,0.802,3029.9,3029.5,1.27094529]
[1731140784489,0.802,3029.9,3029.7,1.27094529]
[1731140785205,0.802,3029.9,3029.1,0.65097929]
[1731140785409,0.802,3029.9,3029.6,1.27094529]
[1731140785927,0.802,3029.9,3029.1,0.65097929]
[1731140786129,0.802,3029.9,3029.1,3.65097929]
[1731140786284,0.802,3029.9,3029.1,0.65097929]
[1731140786628,0.802,3029.9,3029.2,1.27094529]
[1731140787729,0.802,3029.9,3029.4,1.27094529]
[1731140789757,0.802,3029.9,3029.1,0.65097929]
[1731140789954,0.802,3029.9,3029.5,1.27094529]
[1731140795376,0.802,3029.9,3029.7,1.27094529]
[1731140799963,0.802,3029.9,3029.7,1.91607252]
[1731140801270,0.8013,3030.6,3029.8,3.06600783]
[1731140801512,0.8013,3030.6,3030.1,1.27094529]
[1731140807536,0.73814867,3031.1,3029.8,3.13782188]
[1731140807537,0.8013,3030.4,3029.8,3.0]
[1731140807752,0.8013,3030.2,3029.7,3.64512723]
[1731140807955,0.8013,3030.2,3029.7,4.91607252]
[1731140808194,0.8013,3030.2,3029.7,1.91607252]
[1731140811482,0.8013,3029.8,3028.9,0.7646]
[1731140811770,1.27094529,3030.2,3028.9,0.7646]
[1731140811771,0.8013,3029.6,3028.9,1.27094529]
[1731140812129,0.55,3029.5,3028.9,1.27094529]
[1731140812388,0.8013,3029.4,3028.9,1.27094529]
[1731140812533,0.55,3029.3,3028.6,0.7646]
[1731140812734,0.55,3028.9,3028.0,0.7646]
[1731140812979,0.55,3028.9,3028.1,1.48912738]
[1731140813134,0.55,3028.9,3028.2,1.27094529]
[1731140813336,0.55,3028.7,3027.7,0.7646]
[1731140813534,0.8013,3028.6,3027.9,1.27094529]
[1731140813742,0.55,3028.5,3027.9,1.27094529]
[1731140815002,0.55,3028.5,3027.4,0.7646]
[1731140815286,0.55,3028.3,3027.4,1.27094529]
[1731140815446,0.55,3028.3,3027.3,0.66368469]
[1731140815846,0.55,3028.1,3027.3,0.66368469]
[1731140816080,0.55,3028.1,3027.3,1.08198881]
[1731140817185,0.55,3028.1,3027.3,0.66368469]
[1731140817555,0.8013,3028.2,3027.4,3.0]
[1731140818389,0.55,3028.1,3026.8,0.90312751]
[1731140818591,0.55,3027.9,3027.0,3.0]
[1731140818747,0.55,3027.9,3027.0,0.6657884]
[1731140818748,0.55,3027.7,3027.0,0.6657884]
[1731140818947,0.8013,3027.6,3027.1,0.65303993]
[1731140819184,0.55,3027.5,3027.1,0.65303993]
[1731140820894,0.55,3027.5,3026.5,3.7646]
[1731140821046,0.55,3027.5,3026.5,3.0]
[1731140821251,0.55,3027.3,3026.2,3.57925647]
[1731140821447,0.55,3027.3,3026.3,0.35792565]
[1731140821994,0.55,3027.3,3026.7,0.64406253]
[1731140822149,0.7916,3027.2,3026.3,0.35792565]
[1731140822352,0.55,3027.1,3026.3,3.35792565]
[1731140822550,0.55,3027.1,3026.4,0.69371821]
[1731140822551,0.55,3026.9,3026.4,0.69371821]
[1731140822799,0.5478,3026.9,3026.3,0.35792565]
[1731140822955,0.54724446,3026.9,3026.3,0.35792565]
[1731140823151,0.54724446,3026.9,3025.9,3.57925647]
[1731140823353,0.54724446,3026.9,3025.9,2.75475647]
[1731140823995,0.54724446,3026.9,3026.1,0.65132366]
[1731140824690,0.7916,3026.8,3026.0,3.0]
[1731140824908,0.55,3026.7,3026.0,3.0]
[1731140825187,0.55,3026.7,3026.1,0.3]
[1731140825493,0.55,3026.7,3025.8,5.75475647]
[1731140825719,0.55,3026.5,3025.8,5.75475647]
[1731140825991,0.55,3026.5,3025.8,6.42980789]
[1731140826907,0.55,3026.3,3025.8,0.67505142]
[1731140827257,0.7916,3026.2,3025.8,0.67505142]
[1731140827861,0.7916,3026.2,3025.5,2.75475647]
[1731140828068,0.7916,3026.2,3025.6,0.27547565]
[1731140828363,0.55,3026.1,3025.6,0.27547565]
[1731140828562,0.55,3026.1,3025.6,3.27547565]
[1731140829068,0.55,3026.1,3025.7,0.662504]
[1731140829269,0.55,3026.1,3025.1,2.75475647]
[1731140829488,0.55,3025.9,3025.1,2.75475647]
[1731140830805,0.55,3025.9,3024.8,0.36132062]
[1731140830806,0.01,3027.1,3025.7,2.75475647]
[1731140830999,0.55,3026.7,3025.7,2.75475647]
[1731140831303,0.55,3026.5,3025.7,2.75475647]
[1731140832135,0.55,3026.5,3025.8,3.0]
[1731140839334,0.7838,3026.6,3026.3,2.75475647]
[1731140839499,0.7838,3026.9,3026.4,3.0]
[1731140839694,0.0478861,3027.0,3026.5,0.57547565]
[1731140841232,0.7548,3026.9,3026.5,0.57547565]
[1731140842006,0.7548,3027.5,3026.7,3.8116]
[1731140842299,0.7548,3028.0,3027.3,3.0]
[1731140843924,0.55,3027.9,3027.3,3.0]
[1731140847033,12.18,3028.8,3027.6,3.0]
[1731140847231,0.7548,3028.4,3027.8,2.75475647]
[1731140847855,0.7548,3028.4,3027.9,3.0]
[1731140848203,0.7548,3028.8,3027.9,3.0]
[1731140848836,0.7548,3028.8,3028.1,2.75475647]
[1731140849037,0.7548,3028.8,3028.2,3.28208018]
[1731140851554,0.7548,3028.6,3028.0,0.65557542]
[1731140851755,0.7548,3028.2,3027.1,3.56635647]
[1731140851962,0.55,3028.1,3027.1,3.56635647]
[1731140852165,0.55,3028.1,3027.2,0.35663565]
[1731140852656,0.55,3028.1,3027.4,3.41653524]
[1731140853154,0.55,3027.9,3027.2,0.35663565]
[1731140853358,0.55,3027.9,3027.0,0.66560637]
[1731140853359,0.55,3027.7,3027.0,0.66560637]
[1731140853574,0.55,3027.5,3026.4,0.8116]
[1731140853721,0.55,3027.3,3026.1,0.8116]
[1731140854074,0.55,3027.1,3026.3,0.6663323]
[1731140854438,0.55,3027.1,3026.2,0.35663565]
[1731140854835,0.55,3026.9,3026.2,0.35663565]
[1731140855015,0.55,3026.9,3025.9,0.65466523]
[1731140855765,0.55,3026.7,3025.7,2.75475647]
[1731140855928,0.54776496,3026.7,3025.7,2.75475647]
[1731140857220,0.54776496,3026.7,3025.4,0.8116]
[1731140857423,0.7648,3027.0,3025.4,2.75475647]
[1731140857633,0.7548,3026.9,3025.5,3.27547565]
[1731140858136,0.7548,3026.8,3025.8,0.65486327]
[1731140858335,0.55,3026.7,3025.8,0.65486327]
[1731140858562,0.7548,3026.6,3025.8,0.65486327]
[1731140859067,0.55,3026.5,3025.5,0.27547565]
[1731140859273,0.55,3026.3,3025.5,0.27547565]
[1731140859563,0.55,3026.3,3025.4,2.75475647]
[1731140860570,0.55,3026.3,3025.5,3.0]
[1731140861130,0.55,3026.3,3025.7,2.75475647]
[1731140865353,0.01,3027.1,3026.0,2.75475647]
[1731140865579,0.7942,3027.0,3026.1,0.27547565]
[1731140866795,0.55,3026.9,3026.1,0.27547565]
[1731140869686,0.7942,3026.6,3025.5,3.0]
[1731140869883,0.55,3026.5,3025.5,3.0]
[1731140870271,0.55,3026.5,3025.7,2.75475647]
[1731140870592,0.55,3026.5,3025.8,3.0]
[1731140870797,0.55,3026.5,3025.9,0.57547565]
[1731140872009,0.55,3026.5,3025.9,2.75475647]
[1731140872378,0.7942,3026.6,3025.9,2.82084647]
[1731140872781,0.7942,3026.6,3025.9,2.75475647]
[1731140875792,0.7942,3026.6,3025.6,3.4298834]
[1731140876104,0.7942,3026.6,3025.7,3.0]
[1731140876305,0.7942,3026.6,3025.6,3.4298834]
[1731140876306,0.55,3026.5,3025.8,0.64298834]
[1731140876528,0.55,3026.3,3025.6,0.67512693]
[1731140876684,0.55,3026.3,3025.6,0.74122152]
[1731140876889,0.55,3026.3,3025.6,3.4298834]
[1731140877127,0.55,3026.3,3025.7,3.0]
[1731140878585,0.54042608,3026.4,3025.7,3.0]
[1731140878889,0.54042608,3026.4,3025.8,0.64298834]
[1731140879086,0.54042608,3026.4,3025.7,3.0]
[1731140879533,0.54042608,3026.4,3025.6,0.67512693]
[1731140881106,0.55,3026.3,3025.6,0.67512693]
[1731140881716,0.6421,3026.2,3025.6,0.67512693]
[1731140883234,0.55,3026.1,3025.2,5.75475647]
[1731140883528,0.55,3026.1,3025.2,6.30217245]
[1731140883529,0.6421,3026.0,3025.2,6.30217245]
[1731140885008,0.6421,3026.0,3025.5,2.75475647]
[1731140887030,0.6421,3026.5,3025.5,3.55205647]
[1731140887799,0.6421,3026.5,3025.8,2.75475647]
[1731140888019,0.6421,3026.5,3025.9,0.27547565]
[1731140889909,0.6421,3026.5,3026.1,2.75475647]
[1731140890108,0.6421,3026.5,3026.2,3.0]
[1731140892338,12.8221,3026.8,3026.2,3.0]
[1731140892640,12.18,3026.7,3026.2,3.0]
[1731140897142,0.6421,3026.8,3026.2,3.0]
[1731140897441,0.6421,3026.8,3026.3,0.72089158]
[1731140903561,0.69166474,3027.0,3026.5,3.0]
[1731140907685,0.04956474,3027.0,3026.6,0.7733]
[1731140912258,0.04956474,3027.0,3026.6,1.4244204]
[1731140916242,0.6421,3026.9,3026.6,0.6511204]
[1731140916441,0.6421,3026.9,3026.3,0.7733]
[1731140916783,0.04956474,3027.0,3026.5,3.0]
[1731140918754,0.04956474,3027.0,3026.7,2.75475647]
[1731140919082,0.04956474,3027.0,3026.8,0.7733]
[1731140919383,13.21216319,3028.0,3026.8,3.8393723]
[1731140919384,0.6421,3027.7,3026.8,3.8393723]
[1731140919595,0.68144212,3028.0,3027.3,3.0]
[1731140919596,0.6421,3028.0,3027.3,3.0]
[1731140919774,0.6421,3028.0,3027.4,0.7733]
[1731140920176,0.6421,3028.3,3027.6,3.0]
[1731140920476,0.6421,3028.3,3027.7,3.0]
[1731140920850,0.6421,3028.3,3027.7,3.67337088]
[1731140921290,0.6421,3028.3,3027.7,4.31618361]
[1731140928913,0.6421,3028.3,3027.7,1.31618361]
[1731140929125,0.6421,3028.3,3027.7,0.67337088]
[1731140929318,0.6421,3028.1,3027.1,3.7719]
[1731140929482,0.55,3028.0,3027.1,3.7719]
[1731140930588,0.55,3028.0,3027.1,0.7719]
[1731140931218,0.55,3028.0,3027.2,0.64704561]
[1731140931385,0.55,3028.0,3027.2,1.08894017]
[1731140931928,0.01,3027.5,3026.3,0.7719]
[1731140932225,0.55,3027.1,3026.3,0.7719]
[1731140932430,0.55,3027.1,3026.3,3.52665647]
[1731140932631,0.55,3027.1,3026.6,0.65410813]
[1731140933739,0.6421,3027.2,3026.6,0.65410813]
[1731140934046,0.6421,3027.2,3026.4,3.0]
[1731140934253,0.6421,3027.2,3026.5,0.57547565]
[1731140935136,0.6421,3027.2,3026.2,3.0]
[1731140935448,0.6421,3027.2,3026.5,0.66750711]
[1731140935908,0.6421,3027.2,3026.5,1.43940711]
[1731140936105,0.6421,3027.7,3026.5,4.43940711]
[1731140937324,0.55,3027.6,3026.5,1.43940711]
[1731140937527,0.55,3027.6,3026.5,4.43940711]
[1731140937856,0.55,3027.6,3026.6,0.71941636]
[1731140939560,0.55,3027.4,3026.5,1.43940711]
[1731140941553,0.55,3027.4,3026.5,4.43940711]
[1731140941864,0.6421,3027.5,3026.6,0.8207]
[1731140942515,12.19,3028.0,3026.6,0.8207]
[1731140942516,0.6421,3027.9,3026.6,0.8207]
[1731140942723,0.6421,3027.9,3026.9,0.8207]
[1731140942961,0.6421,3027.9,3026.9,0.88676592]
[1731140943281,7.49954056,3028.4,3027.3,3.0]
[1731140943282,0.6421,3028.2,3027.3,3.0]
[1731140943455,0.69164056,3028.4,3027.5,0.8207]
[1731140943658,0.69164056,3028.4,3027.5,1.20937556]
[1731140943897,0.04954056,3028.4,3027.6,3.88675011]
[1731140944257,0.04954056,3028.4,3027.6,3.8207]
[1731140946191,0.04954056,3028.4,3027.8,0.8207]
[1731140949478,0.04954056,3028.4,3027.5,1.20937556]
[1731140950426,0.04954056,3028.4,3027.6,0.65740496]
[1731140950597,0.04954056,3028.4,3027.6,0.84408301]
[1731140967269,0.55,3028.3,3027.5,0.8207]
[1731140967424,0.55,3028.1,3027.5,0.8207]
[1731140967625,0.55,3028.1,3026.7,0.59182622]
[1731140967837,0.55,3027.9,3026.8,0.8214]
[1731140968547,1.32354212,3028.0,3026.8,0.8214]
[1731140968548,0.55,3027.7,3026.8,0.8214]
[1731140971867,0.55,3027.5,3026.8,0.8214]
[1731140973272,12.73,3027.5,3026.6,0.8214]
[1731140974533,0.6421,3027.0,3026.2,0.8214]
[1731140974734,0.55,3026.9,3026.2,0.8214]
[1731140975569,0.55,3026.9,3025.1,0.8214]
[1731140975769,0.56,3026.9,3025.3,0.8214]
[1731140976156,0.6421,3026.8,3025.3,0.8214]
[1731140976335,0.55,3026.7,3025.3,0.8214]
[1731140977171,0.55,3026.6,3025.3,0.8214]
[1731140977685,0.55,3026.6,3025.4,0.66059044]
[1731140978483,0.55,3026.6,3025.5,0.8214]
[1731140978670,0.55,3026.6,3025.7,0.8214]
[1731140979178,0.55,3026.9,3025.9,0.8214]
[1731140979483,12.18,3027.2,3026.1,0.8214]
[1731140979679,12.18,3027.2,3026.2,0.8214]
[1731140980885,0.55,3027.1,3026.2,0.8214]
[1731140981384,12.18,3027.2,3026.2,0.8214]
[1731140981676,12.18,3027.2,3026.4,0.8136]
[1731140984194,0.55,3027.5,3026.4,0.8136]
[1731140985097,0.6421,3027.6,3026.5,0.87968058]
[1731140985300,0.6421,3027.9,3026.5,0.87968058]
[1731140985662,0.6421,3027.9,3026.5,0.8136]
[1731140986502,0.55,3027.8,3026.7,0.8136]
[1731140987199,0.55,3027.8,3026.4,3.0]
[1731140987200,0.55,3027.8,3026.8,0.87967]
[1731140987401,0.55,3027.9,3026.8,0.8136]
[1731140989106,0.55,3027.9,3026.8,1.48805852]
[1731140989311,0.55,3027.9,3026.8,0.8136]
[1731140989466,7.45,3028.0,3026.8,0.8136]
[1731140989467,3.30475647,3027.7,3026.8,0.8136]
[1731140990021,15.48475647,3027.7,3026.8,0.8136]
[1731140995372,12.73,3027.7,3026.8,0.8136]
[1731140995885,0.55,3027.5,3026.8,0.8136]
[1731140996091,1.33721,3027.4,3026.8,0.8136]
[1731140996310,0.55,3027.3,3026.8,0.8136]
[1731140997201,0.55,3027.3,3026.6,0.8136]
[1731140998710,1.33721,3027.4,3026.6,0.8136]
[1731140998711,0.55,3027.1,3026.6,0.8136]
[1731140999807,0.55,3027.3,3026.6,0.8136]
[1731141000008,0.55,3027.1,3026.6,0.8136]
[1731141002509,12.18,3027.3,3026.6,0.8136]
[1731141003610,0.55,3027.2,3026.6,0.8136]
[1731141006814,1.1921,3027.2,3026.6,0.8136]
[1731141008319,1.1921,3027.2,3026.0,0.8276]
[1731141008320,1.2021,3027.2,3026.0,0.8276]
[1731141008516,0.55,3027.0,3026.0,0.8276]
[1731141009382,0.55,3027.0,3026.0,2.4797]
[1731141009883,0.55,3027.0,3026.1,0.8276]
[1731141015303,1.23905904,3027.0,3026.1,0.8276]
[1731141015833,0.55,3027.0,3026.1,0.8276]
[1731141016005,0.55,3027.0,3026.3,0.8276]
[1731141016347,1.23905904,3027.0,3026.3,0.8276]
[1731141017035,0.55,3027.0,3026.3,0.8276]
[1731141017434,1.23905904,3027.0,3026.3,0.8276]
[1731141017637,0.55,3027.0,3026.3,0.8276]
[1731141018136,1.54944539,3027.0,3026.3,0.8276]
[1731141018702,0.55,3026.8,3026.3,0.8276]
[1731141020709,1.23905904,3026.8,3026.3,0.8276]
[1731141020950,12.18,3026.9,3026.3,0.8276]
[1731141022539,0.68905904,3027.2,3026.3,0.8276]
[1731141022931,12.86905904,3027.5,3026.5,0.8207]
[1731141023256,0.68905904,3027.5,3026.7,0.8207]
[1731141023614,0.68905904,3027.6,3026.7,0.88677591]
[1731141023849,0.60992297,3027.9,3026.8,3.0]
[1731141024027,12.78992297,3028.0,3026.9,0.88676716]
[1731141024234,12.78992297,3028.0,3027.1,0.8207]
[1731141024416,12.18,3028.0,3027.1,0.8207]
[1731141027434,0.6421,3027.9,3027.1,0.8207]
[1731141027621,1.67568857,3027.9,3027.1,0.8207]
[1731141027821,0.55,3027.8,3027.1,0.8207]
[1731141028022,0.55,3027.6,3027.1,0.8207]
[1731141028462,0.55,3027.6,3026.3,0.67197041]
[1731141028463,12.73,3027.6,3026.3,0.67197041]
[1731141028664,12.73,3027.6,3026.4,0.8207]
[1731141029652,0.6421,3027.5,3026.4,0.8207]
[1731141029937,3.30475647,3027.4,3026.4,0.8207]
[1731141030140,0.55,3027.2,3026.4,0.8207]
[1731141030575,12.73,3027.2,3026.4,0.8207]
[1731141030746,13.76358857,3027.2,3026.4,0.8207]
[1731141032576,0.6421,3027.0,3026.4,0.8207]
[1731141032739,0.55,3026.7,3026.0,2.4328]
[1731141032940,0.55,3026.5,3026.0,2.4328]
[1731141035155,13.20109004,3026.6,3026.0,2.4328]
[1731141035370,12.51047565,3026.6,3026.0,2.4328]
[1731141036693,12.18,3026.6,3026.1,0.7807]
[1731141037390,0.69061439,3027.0,3026.1,0.7807]
[1731141038555,12.18,3027.1,3026.1,0.7807]
[1731141039695,0.6421,3026.9,3026.1,0.7807]
[1731141039987,0.55,3026.8,3026.1,0.7807]
[1731141040182,0.18825803,3026.7,3026.1,0.7807]
[1731141040384,0.55,3026.6,3026.1,0.7807]
[1731141041303,1.2404803,3026.6,3026.0,1.6521]
[1731141041588,0.55,3026.4,3026.0,1.6521]
[1731141043249,12.73,3026.4,3026.0,1.6521]
[1731141043464,0.55,3026.2,3026.0,1.6521]
[1731141043668,12.73,3026.2,3026.0,1.6521]
[1731141043880,13.4204803,3026.2,3026.0,1.6521]
[1731141044651,12.73,3026.2,3026.0,1.6521]
[1731141048795,12.18,3026.2,3026.1,0.7508]
[1731141049161,12.18,3026.5,3026.1,0.7508]
[1731141049470,1.28704803,3026.4,3026.1,0.7508]
[1731141050900,1.28704803,3026.4,3026.0,1.6521]
[1731141050901,0.55,3026.3,3026.0,1.6521]
[1731141051398,1.1921,3026.3,3026.0,1.6521]
[1731141052573,1.8825803,3026.3,3026.0,1.6521]
[1731141052773,0.55,3026.1,3026.0,1.6521]
[1731141055213,12.73,3026.1,3026.0,1.6521]
[1731141056713,13.3721,3026.1,3026.0,1.6521]
[1731141058514,12.73,3026.1,3026.0,1.6521]
[1731141060535,12.18,3026.1,3026.0,1.6521]
[1731141060703,12.18,3026.1,3026.0,2.4029]
[1731141060906,12.18,3026.7,3026.0,2.4029]
[1731141061233,1.49347565,3026.6,3026.0,2.4029]
[1731141061929,0.55,3026.5,3026.0,2.4029]
[1731141063717,12.18,3026.9,3026.1,0.8055]
[1731141064647,12.18,3027.3,3026.1,0.8055]
[1731141064855,12.18,3027.3,3026.3,0.8055]
[1731141065011,12.18,3027.3,3026.4,0.8055]
[1731141066703,0.04892716,3027.5,3026.6,0.8055]
[1731141067810,0.04892716,3027.5,3026.9,3.0]
[1731141068010,0.04892716,3027.5,3027.1,0.8055]
[1731141073216,0.55,3027.4,3027.1,0.8055]
[1731141074720,0.55,3027.4,3026.3,0.8055]
[1731141076731,1.1921,3027.4,3026.3,0.8055]
[1731141078942,13.3721,3027.4,3026.3,0.8055]
[1731141079138,1.34210272,3027.3,3026.4,0.8055]
[1731141079387,0.55,3027.2,3026.4,0.8055]
[1731141085765,13.52210272,3027.3,3026.5,3.7754]
[1731141085766,12.18,3027.3,3026.5,3.7754]
[1731141086089,12.18,3027.3,3026.7,0.7754]
[1731141087075,12.18,3027.3,3026.7,0.84147037]
[1731141087504,12.18,3027.3,3026.7,0.7754]
[1731141089017,0.55,3027.2,3026.7,0.7754]
[1731141090408,12.18,3027.3,3026.7,0.7754]
[1731141090812,0.04892716,3027.5,3026.7,0.7754]
[1731141095425,0.55,3027.4,3026.7,0.7754]
[1731141100238,1.1921,3027.4,3026.7,0.7754]
[1731141100925,0.6421,3027.0,3026.1,0.7754]
[1731141101311,0.55,3026.9,3026.1,0.7754]
[1731141103747,0.55,3027.2,3026.1,0.7754]
[1731141105119,12.18,3027.4,3026.2,0.7607]
[1731141105326,12.18,3027.4,3026.4,0.7607]
[1731141106913,0.55,3027.3,3026.4,0.7607]
[1731141107951,1.2404803,3027.3,3026.4,0.7607]
[1731141109351,0.6904803,3027.2,3026.4,0.7607]
[1731141109688,0.55,3027.1,3026.4,0.7607]
[1731141110256,0.55,3027.1,3026.4,0.93901986]
[1731141112096,1.03572045,3027.3,3026.4,0.93901986]
[1731141112097,0.6904803,3027.3,3026.4,0.93901986]
[1731141113914,0.6904803,3027.2,3026.4,0.93901986]
[1731141114267,0.6904803,3027.3,3026.4,0.93901986]
[1731141114474,1.03572045,3027.4,3026.4,0.93901986]
[1731141114475,0.6904803,3027.2,3026.4,0.93901986]
[1731141117389,0.6904803,3027.1,3026.4,0.93901986]
[1731141120098,0.6904803,3027.0,3026.4,0.93901986]
[1731141120283,0.6904803,3027.1,3026.4,0.93901986]
[1731141120891,0.6904803,3027.0,3026.4,0.93901986]
[1731141121595,0.6904803,3027.1,3026.4,0.93901986]
[1731141126705,0.6904803,3027.2,3026.4,0.93901986]
[1731141126908,0.6904803,3027.1,3026.4,0.93901986]
[1731141130228,0.6904803,3027.2,3026.4,0.93901986]
[1731141130767,0.6904803,3027.1,3026.4,0.93901986]
[1731141131255,0.6904803,3027.0,3026.4,0.93901986]
[1731141131452,0.6904803,3027.0,3026.4,0.7607]
[1731141131830,0.6904803,3027.1,3026.4,0.7607]
[1731141132044,0.6904803,3027.0,3026.4,0.7607]
[1731141133926,0.6904803,3026.9,3026.4,0.7607]
[1731141134925,0.6904803,3026.8,3026.4,0.7607]
[1731141135129,0.6904803,3026.7,3026.4,0.7607]
[1731141136122,0.6904803,3026.8,3026.4,0.7607]
[1731141138632,0.6904803,3026.9,3026.4,0.7607]
[1731141139882,0.6904803,3026.8,3026.4,0.7607]
[1731141140221,0.6904803,3026.9,3026.6,0.7914]
[1731141140562,0.6904803,3027.0,3026.6,0.7914]
[1731141140763,0.6904803,3027.1,3026.7,1.27254187]
[1731141140936,0.6904803,3027.1,3026.8,0.7914]
[1731141143745,0.6904803,3027.1,3026.7,1.27254187]
[1731141143746,12.18,3027.2,3027.0,0.7833]
[1731141144278,0.73940746,3027.5,3027.0,0.7833]
[1731141149390,1.55902025,3027.5,3027.0,0.7833]
[1731141149545,0.6904803,3027.3,3027.0,0.7833]
[1731141150452,0.6904803,3027.2,3027.0,0.7833]
[1731141150665,0.6904803,3027.3,3027.0,0.7833]
[1731141151191,0.6904803,3027.2,3027.0,0.7833]
[1731141151353,0.6904803,3027.3,3027.0,0.7833]
[1731141151553,0.6904803,3027.4,3027.0,0.7833]
[1731141154481,12.91940746,3027.5,3027.0,0.7833]
[1731141154682,12.22892716,3027.5,3027.0,0.7833]